fUSD/lending_fUSD_20240327
["ID","MTS","AMOUNT","RATE_DAILY","PERIOD"]
[320804307,1711561950574,-4077.6,0.00058904,120]
[320804308,1711561950583,-962.02,0.00058904,120]
[320804309,1711561950593,-1910.86,0.00058904,120]
[320804310,1711561950603,-1981.61,0.00058904,120]
[320804311,1711561950612,-993.68,0.00058904,120]
[320804312,1711561950623,-1310.9,0.00058904,120]
[320804313,1711561950634,-5861.79,0.00058904,120]
[320804314,1711561950644,-861.74,0.00058904,120]
[320804315,1711561950654,-3868.28,0.00058904,120]
[320804316,1711561950663,-4602.46,0.00058904,120]
[320804317,1711561950673,-2285.5,0.00058904,120]
[320804318,1711561950682,-2663.41,0.00058904,120]
[320804319,1711561950692,-7201.79,0.00058904,120]
[320804320,1711561950701,-1041.92,0.00058904,120]
[320804321,1711561950711,-500.0,0.00058904,120]
[320804322,1711561950720,-2054.16,0.00058904,120]
[320804323,1711561950730,-18909.02,0.00058904,120]
[320804324,1711561950739,-1431.94,0.00058904,120]
[320804325,1711561950748,-1528.43,0.00058904,120]
[320804326,1711561950758,-1715.09,0.00058904,120]
[320804327,1711561950767,-543.42,0.00058904,120]
[320804328,1711561950776,-836.18,0.00058904,120]
[320804329,1711561950785,-2529.3,0.00058904,120]
[320804330,1711561950794,-1204.05,0.00058904,120]
[320804331,1711561950804,-882.15,0.00058904,120]
[320804332,1711561950814,-500.0,0.00058904,120]
[320804333,1711561950823,-1890.07,0.00058904,120]
[320804334,1711561950832,-1395.77,0.00058904,120]
[320804335,1711561950842,-22066.4,0.00058904,120]
[320804336,1711561950851,-9133.29,0.00058904,120]
[320804337,1711561950862,-3276.54,0.00058904,120]
[320804338,1711561950873,-3779.21,0.00058904,120]
[320804339,1711561950882,-505.39,0.00058904,120]
[320804340,1711561950897,-1407.53,0.00058904,120]
[320804341,1711561950907,-1780.21,0.00058904,120]
[320804342,1711561950916,-744.71,0.00058904,120]
[320804343,1711561950926,-3375.62,0.00058904,120]
[320804344,1711561950936,-500.0,0.00058904,120]
[320804345,1711561950946,-1245.33,0.00058904,120]
[320804346,1711561950955,-825.22,0.00058904,120]
[320804347,1711561950965,-2499.0,0.00058904,120]
[320804348,1711561950975,-1139.82,0.00058904,120]
[320804349,1711561950984,-3390.46,0.00058904,120]
[320804350,1711561950995,-2297.82,0.00058904,120]
[320804351,1711561951005,-36215.98,0.00058904,120]
[320804352,1711561951015,-2115.9,0.00058904,120]
[320804353,1711561951024,-166.04467278,0.00058904,120]
[320804354,1711561951033,-504.0,0.00058904,120]
[320804355,1711561951043,-635.43,0.00058904,120]
[320804356,1711561951054,-509.72,0.00058904,7]
[320804357,1711561951063,-1985.21,0.00058904,120]
[320804358,1711561951073,-4093.44,0.00058904,120]
[320804359,1711561951082,-598.33,0.00058904,120]
[320804360,1711561951091,-3703.02,0.00058904,120]
[320804361,1711561951101,-3170.6,0.00058904,120]
[320804362,1711561951110,-4518.78,0.00058904,120]
[320804363,1711561951119,-816.34,0.00058904,120]
[320804364,1711561951130,-550.58,0.00058904,120]
[320804365,1711561951140,-5597.96,0.00058904,120]
[320804366,1711561951150,-3365.42,0.00058904,120]
[320804367,1711561951159,-1850.45,0.00058904,120]
[320804368,1711561951170,-1437.25,0.00058904,120]
[320804369,1711561951180,-543.16,0.00058904,120]
[320804370,1711561951189,-500.0,0.00058904,120]
[320804371,1711561951199,-13261.96,0.00058904,120]
[320804372,1711561951209,-2460.7,0.00058904,120]
[320804373,1711561951219,-688.55,0.00058904,120]
[320804374,1711561951228,-1308.22,0.00058904,120]
[320804375,1711561951238,-1655.41,0.00058904,120]
[320804376,1711561951247,-183.08253421,0.00058904,120]
[320804377,1711561951257,-3292.56,0.00058904,120]
[320804378,1711561951267,-606.26,0.00058904,120]
[320804379,1711561951277,-2911.12,0.00058904,120]
[320804380,1711561951286,-4771.81,0.00058904,120]
[320804381,1711561951295,-1591.58,0.00058904,120]
[320804382,1711561951305,-8314.67,0.00058904,21]
[320804383,1711561951315,-515.6,0.00058904,120]
[320804384,1711561951324,-1246.89,0.00058904,120]
[320804385,1711561951334,-1689.16,0.00058904,120]
[320804386,1711561951343,-500.0,0.00058904,120]
[320804387,1711561951353,-770.25,0.00058904,120]
[320804388,1711561951362,-8380.88,0.00058904,120]
[320804389,1711561951371,-614.46,0.00058904,120]
[320804390,1711561951381,-2989.36,0.00058904,120]
[320804391,1711561951391,-10959.62,0.00058904,120]
[320804392,1711561951401,-521.47,0.00058904,120]
[320804393,1711561951412,-2645.1,0.00058904,120]
[320804394,1711561951422,-758.38,0.00058904,120]
[320804395,1711561951431,-12744.26,0.00058904,120]
[320804396,1711561951440,-500.0,0.00058904,120]
[320804397,1711561951450,-11517.5,0.00058904,120]
[320804398,1711561951459,-2628.59,0.00058904,120]
[320804399,1711561951468,-1981.45,0.00058904,120]
[320804400,1711561951478,-490.53591849,0.00058904,120]
[320804401,1711561951487,-2618.9,0.00058904,120]
[320804402,1711561951496,-2635.65,0.00058904,120]
[320804403,1711561951505,-2440.72,0.00058904,120]
[320804404,1711561951514,-1641.2,0.00058904,120]
[320804405,1711561951524,-1422.66,0.00058904,120]
[320804406,1711561951535,-1953.26,0.00058904,120]
[320804407,1711561951544,-680.59,0.00058904,120]
[320804408,1711561951553,-851.11,0.00058904,120]
[320804409,1711561951563,-516.23,0.00058904,120]
[320804410,1711561951572,-4524.02,0.00058904,120]
[320804411,1711561951582,-611.03691612,0.00058904,120]
[320804412,1711561951591,-833.36,0.00058904,120]
[320804413,1711561951600,-2147.51,0.00058904,120]
[320804414,1711561951609,-1200.4,0.00058904,120]
[320804415,1711561951618,-6977.94,0.00058904,120]
[320804416,1711561951628,-4994.03,0.00058904,120]
[320804417,1711561951638,-1826.97,0.00058904,120]
[320804418,1711561951649,-1042.58,0.00058904,120]
[320804419,1711561951659,-818.62,0.00058904,120]
[320804420,1711561951668,-1312.03,0.00058904,120]
[320804421,1711561951678,-1814.79,0.00058904,120]
[320804422,1711561951687,-1730.09,0.00058904,120]
[320804423,1711561951697,-3092.64,0.00058904,120]
[320804424,1711561951706,-500.0,0.00058904,120]
[320804425,1711561951716,-3331.35,0.00058904,120]
[320804426,1711561951725,-1107.56,0.00058904,120]
[320804427,1711561951734,-1629.06,0.00058904,120]
[320804428,1711561951743,-858.06,0.00058904,120]
[320804429,1711561951753,-1926.96,0.00058904,120]
[320804430,1711561951762,-5998.21,0.00058904,120]
[320804431,1711561951772,-1276.61,0.00058904,120]
[320804432,1711561951782,-978.47,0.00058904,120]
[320804433,1711561951791,-1204.74,0.00058904,120]
[320804434,1711561951800,-500.0,0.00058904,120]
[320804435,1711561951810,-1112.11,0.00058904,120]
[320804436,1711561951819,-500.0,0.00058904,120]
[320804437,1711561951829,-5147.59,0.00058904,120]
[320804438,1711561951839,-1278.89,0.00058904,120]
[320804439,1711561951848,-9591.799595,0.00058946,30]
[320804440,1711561951858,-4795.899798,0.00058946,30]
[320804441,1711561951867,-4795.899797,0.00058946,30]
[320804442,1711561951878,-318.86786748,0.00058957,120]
[320804443,1711561951893,-9721.94026,0.0005897,21]
[320804444,1711561951902,-334.81026815,0.00058998,120]
[320804445,1711561951911,-1000.0,0.00059,120]
[320804446,1711561951922,-1847.39154098,0.00059,120]
[320804447,1711561951931,-300.0,0.00059,61]
[320804448,1711561951940,-600.0,0.00059,60]
[320804449,1711561951950,-160000.0,0.00059,30]
[320804450,1711561951960,-1073.0,0.00059,60]
[320804451,1711561951970,-236666.75434319,0.00059,120]
[320804452,1711561951979,-394.41,0.00059,14]
[320804453,1711561951988,-460.07,0.00059,30]
[320804454,1711561951997,-5056.51492563,0.00059019,120]
[320804455,1711561952007,-2297.87115028,0.00059019,120]
[320804456,1711561952016,-745.54344938,0.00059019,120]
[320804457,1711561952025,-2121.19438282,0.00059019,120]
[320804458,1711561952035,-170.89924236,0.00059028,120]
[320804459,1711561952045,-150.50617537,0.00059052,120]
[320804460,1711561952054,-150.0,0.0005906,120]
[320804461,1711561952063,-153.33171328,0.00059072,120]
[320804462,1711561952073,-150.19866873,0.00059091,79]
[320804463,1711561952082,-150.0,0.000591,13]
[320804464,1711561952092,-193.5851613,0.00059138,2]
[320804465,1711561952102,-2884.23528,0.00059138,2]
[320804466,1711561952111,-318.86786748,0.00059142,120]
[320804467,1711561952120,-7142.36445864,0.00059163,15]
[320804468,1711561952130,-522.2,0.00059178,120]
[320804469,1711561952139,-500.0,0.00059178,120]
[320804470,1711561952149,-631.01,0.00059178,120]
[320804471,1711561952158,-500.0,0.00059178,120]
[320804472,1711561952167,-530.38,0.00059178,120]
[320804473,1711561952176,-517.87,0.00059178,120]
[320804474,1711561952185,-736.48,0.00059178,120]
[320804475,1711561952195,-500.0,0.00059178,120]
[320804476,1711561952204,-500.0,0.00059178,120]
[320804477,1711561952213,-827.53,0.00059178,120]
[320804478,1711561952222,-1149.15,0.00059178,120]
[320804479,1711561952232,-683.71,0.00059178,120]
[320804480,1711561952241,-588.63,0.00059178,120]
[320804481,1711561952250,-1653.05,0.00059178,120]
[320804482,1711561952259,-721.85,0.00059178,120]
[320804483,1711561952269,-1272.4,0.00059178,120]
[320804484,1711561952278,-758.1,0.00059178,120]
[320804485,1711561952288,-751.34,0.00059178,120]
[320804486,1711561952297,-453.51595402,0.00059178,120]
[320804487,1711561952306,-1106.66,0.00059178,120]
[320804488,1711561952316,-667.72,0.00059178,120]
[320804489,1711561952325,-500.0,0.00059178,120]
[320804490,1711561952335,-546.53,0.00059178,120]
[320804491,1711561952344,-525.52,0.00059178,120]
[320804492,1711561952353,-1650.28,0.00059178,120]
[320804493,1711561952362,-1208.64,0.00059178,120]
[320804494,1711561952371,-1675.07,0.00059178,120]
[320804495,1711561952381,-500.0,0.00059178,60]
[320804496,1711561952390,-875.05,0.00059178,120]
[320804497,1711561952401,-500.0,0.00059178,120]
[320804498,1711561952410,-896.37,0.00059178,120]
[320804499,1711561952420,-526.04,0.00059178,120]
[320804500,1711561952429,-774.53,0.00059178,120]
[320804501,1711561952438,-623.96,0.00059178,120]
[320804502,1711561952448,-1500.57,0.00059178,120]
[320804503,1711561952458,-500.0,0.00059178,120]
[320804504,1711561952467,-1293.46,0.00059178,120]
[320804505,1711561952477,-663.1,0.00059178,120]
[320804506,1711561952487,-591.57,0.00059178,120]
[320804507,1711561952496,-540.2,0.00059178,120]
[320804508,1711561952506,-826.04,0.00059178,120]
[320804509,1711561952515,-802.7,0.00059178,120]
[320804510,1711561952525,-551.8,0.00059178,120]
[320804511,1711561952535,-792.47,0.00059178,120]
[320804512,1711561952544,-507.03,0.00059178,120]
[320804513,1711561952553,-814.62,0.00059178,120]
[320804514,1711561952563,-519.12,0.00059178,120]
[320804515,1711561952573,-553.94,0.00059178,120]
[320804516,1711561952582,-1363.26,0.00059178,120]
[320804517,1711561952591,-681.15,0.00059178,120]
[320804518,1711561952600,-1247.0,0.00059178,120]
[320804519,1711561952609,-828.0,0.00059178,120]
[320804520,1711561952619,-691.03,0.00059178,120]
[320804521,1711561952628,-907.95,0.00059178,120]
[320804522,1711561952638,-1943.45,0.00059178,120]
[320804523,1711561952648,-1363.72,0.00059178,120]
[320804524,1711561952658,-500.0,0.00059178,120]
[320804525,1711561952667,-1264.66,0.00059178,120]
[320804526,1711561952676,-518.11,0.00059178,120]
[320804527,1711561952685,-500.0,0.00059178,120]
[320804528,1711561952694,-785.6,0.00059178,120]
[320804529,1711561952704,-500.0,0.00059178,120]
[320804530,1711561952713,-533.96,0.00059178,120]
[320804531,1711561952722,-610.76,0.00059178,120]
[320804532,1711561952732,-601.27,0.00059178,120]
[320804533,1711561952741,-619.35,0.00059178,120]
[320804534,1711561952750,-723.32,0.00059178,120]
[320804535,1711561952759,-658.94,0.00059178,30]
[320804536,1711561952768,-604.53,0.00059178,120]
[320804537,1711561952778,-410.4,0.00059178,120]
[320804538,1711561952787,-627.6,0.00059178,120]
[320804539,1711561952796,-541.49,0.00059178,120]
[320804540,1711561952807,-525.41,0.00059178,120]
[320804541,1711561952816,-1259.13,0.00059178,120]
[320804542,1711561952825,-500.0,0.00059178,120]
[320804543,1711561952834,-961.87,0.00059178,120]
[320804544,1711561952843,-1118.41,0.00059178,120]
[320804545,1711561952852,-1285.86,0.00059178,120]
[320804546,1711561952861,-653.33,0.00059178,120]
[320804547,1711561952871,-439.96,0.00059178,120]
[320804548,1711561952881,-515.61,0.00059178,120]
[320804549,1711561952895,-881.34,0.00059178,120]
[320804550,1711561952904,-594.96,0.00059178,120]
[320804551,1711561952914,-635.55,0.00059178,120]
[320804552,1711561952925,-500.0,0.00059178,120]
[320804553,1711561952935,-569.07,0.00059178,120]
[320804554,1711561952945,-513.81,0.00059178,120]
[320804555,1711561952955,-885.2,0.00059178,120]
[320804556,1711561952965,-507.05,0.00059178,120]
[320804557,1711561952975,-345.9,0.00059178,120]
[320804558,1711561952984,-500.0,0.00059178,120]
[320804559,1711561952994,-969.37,0.00059178,120]
[320804560,1711561953003,-712.96,0.00059178,120]
[320804561,1711561953012,-500.0,0.00059178,120]
[320804562,1711561953021,-607.67,0.00059178,120]
[320804563,1711561953030,-500.0,0.00059178,120]
[320804564,1711561953040,-631.34,0.00059178,120]
[320804565,1711561953050,-500.0,0.00059178,120]
[320804566,1711561953061,-572.09,0.00059178,120]
[320804567,1711561953070,-633.56,0.00059178,120]
[320804568,1711561953079,-1276.08,0.00059178,120]
[320804569,1711561953089,-743.04,0.00059178,120]
[320804570,1711561953098,-994.38,0.00059178,120]
[320804571,1711561953107,-1464.37,0.00059178,120]
[320804572,1711561953116,-1308.17,0.00059178,120]
[320804573,1711561953126,-1966.83,0.00059178,120]
[320804574,1711561953136,-1167.58,0.00059178,120]
[320804575,1711561953145,-882.23,0.00059178,120]
[320804576,1711561953154,-500.0,0.00059178,120]
[320804577,1711561953164,-939.99,0.00059178,120]
[320804578,1711561953174,-1680.42,0.00059178,120]
[320804579,1711561953183,-654.45,0.00059178,120]
[320804580,1711561953192,-1090.78,0.00059178,120]
[320804581,1711561953201,-5693.99,0.00059178,120]
[320804582,1711561953210,-2767.8,0.00059178,120]
[320804583,1711561953220,-631.11,0.00059178,120]
[320804584,1711561953229,-638.94,0.00059178,120]
[320804585,1711561953238,-1880.06,0.00059178,120]
[320804586,1711561953248,-3576.66,0.00059178,120]
[320804587,1711561953257,-1154.81,0.00059178,120]
[320804588,1711561953266,-597.69,0.00059178,120]
[320804589,1711561953275,-11680.99,0.00059178,120]
[320804590,1711561953284,-500.0,0.00059178,120]
[320804591,1711561953294,-500.0,0.00059178,120]
[320804592,1711561953303,-500.0,0.00059178,120]
[320804593,1711561953312,-820.32,0.00059178,120]
[320804594,1711561953322,-4891.01,0.00059178,120]
[320804595,1711561953331,-2266.19,0.00059178,120]
[320804596,1711561953340,-4319.88,0.00059178,120]
[320804597,1711561953349,-638.01,0.00059178,120]
[320804598,1711561953358,-1948.43,0.00059178,120]
[320804599,1711561953367,-594.89,0.00059178,120]
[320804600,1711561953377,-58191.63,0.00059178,120]
[320804601,1711561953387,-4872.06,0.00059178,120]
[320804602,1711561953397,-25819.15,0.00059178,120]
[320804603,1711561953406,-916.42,0.00059178,120]
[320804604,1711561953414,-672.12,0.00059178,120]
[320804605,1711561953424,-172.82730161,0.00059178,120]
[320804606,1711561953433,-2822.64,0.00059178,120]
[320804607,1711561953442,-5739.01,0.00059178,120]
[320804608,1711561953453,-1773.91,0.00059178,120]
[320804609,1711561953462,-1599.36,0.00059178,120]
[320804610,1711561953471,-7896.21,0.00059178,120]
[320804611,1711561953481,-580.5,0.00059178,120]
[320804612,1711561953490,-168.59092516,0.00059178,120]
[320804613,1711561953499,-702.31,0.00059178,120]
[320804614,1711561953508,-4077.6,0.00059178,120]
[320804615,1711561953517,-962.02,0.00059178,120]
[320804616,1711561953526,-1910.86,0.00059178,120]
[320804617,1711561953535,-1981.61,0.00059178,120]
[320804618,1711561953544,-993.68,0.00059178,120]
[320804619,1711561953552,-1310.9,0.00059178,120]
[320804620,1711561953562,-5861.79,0.00059178,120]
[320804621,1711561953570,-861.74,0.00059178,120]
[320804622,1711561953579,-3868.28,0.00059178,120]
[320804623,1711561953588,-4602.46,0.00059178,120]
[320804624,1711561953597,-2285.5,0.00059178,120]
[320804625,1711561953606,-2663.41,0.00059178,120]
[320804626,1711561953615,-7201.79,0.00059178,120]
[320804627,1711561953625,-1041.92,0.00059178,120]
[320804628,1711561953634,-206.71130315,0.00059178,120]
[320804629,1711561953645,-2054.16,0.00059178,120]
[320804630,1711561953654,-18909.02,0.00059178,120]
[320804631,1711561953663,-1431.94,0.00059178,120]
[320804632,1711561953672,-1528.43,0.00059178,120]
[320804633,1711561953681,-1715.09,0.00059178,120]
[320804634,1711561953690,-543.42,0.00059178,120]
[320804635,1711561953699,-836.18,0.00059178,120]
[320804636,1711561953709,-2529.3,0.00059178,120]
[320804637,1711561953718,-1204.05,0.00059178,120]
[320804638,1711561953727,-882.15,0.00059178,120]
[320804639,1711561953736,-500.0,0.00059178,120]
[320804640,1711561953746,-1890.07,0.00059178,120]
[320804641,1711561953756,-1395.77,0.00059178,120]
[320804642,1711561953765,-22066.4,0.00059178,120]
[320804643,1711561953775,-9133.29,0.00059178,120]
[320804644,1711561953785,-3276.54,0.00059178,120]
[320804645,1711561953794,-3779.21,0.00059178,120]
[320804646,1711561953804,-505.39,0.00059178,120]
[320804647,1711561953814,-1407.53,0.00059178,120]
[320804648,1711561953823,-1780.21,0.00059178,120]
[320804649,1711561953832,-744.71,0.00059178,120]
[320804650,1711561953842,-3375.62,0.00059178,120]
[320804651,1711561953851,-500.0,0.00059178,120]
[320804652,1711561953860,-1245.33,0.00059178,120]
[320804653,1711561953870,-825.22,0.00059178,120]
[320804654,1711561953883,-2499.0,0.00059178,120]
[320804655,1711561953892,-1139.82,0.00059178,120]
[320804656,1711561953903,-3390.46,0.00059178,120]
[320804657,1711561953912,-2297.82,0.00059178,120]
[320804658,1711561953922,-36215.98,0.00059178,120]
[320804659,1711561953931,-2115.9,0.00059178,120]
[320804660,1711561953941,-504.0,0.00059178,120]
[320804661,1711561953950,-635.43,0.00059178,120]
[320804662,1711561953961,-509.72,0.00059178,7]
[320804663,1711561953972,-1985.21,0.00059178,120]
[320804664,1711561953982,-4093.44,0.00059178,120]
[320804665,1711561953991,-598.33,0.00059178,120]
[320804666,1711561954001,-3703.02,0.00059178,120]
[320804667,1711561954010,-3170.6,0.00059178,120]
[320804668,1711561954020,-4518.78,0.00059178,120]
[320804669,1711561954029,-816.34,0.00059178,120]
[320804670,1711561954039,-550.58,0.00059178,120]
[320804671,1711561954049,-5597.96,0.00059178,120]
[320804672,1711561954058,-3365.42,0.00059178,120]
[320804673,1711561954067,-1850.45,0.00059178,120]
[320804674,1711561954077,-543.16,0.00059178,120]
[320804675,1711561954086,-1437.25,0.00059178,120]
[320804676,1711561954095,-500.0,0.00059178,120]
[320804677,1711561954105,-13261.96,0.00059178,120]
[320804678,1711561954114,-2460.7,0.00059178,120]
[320804679,1711561954123,-688.55,0.00059178,120]
[320804680,1711561954132,-1308.22,0.00059178,120]
[320804681,1711561954141,-1655.41,0.00059178,120]
[320804682,1711561954152,-3292.56,0.00059178,120]
[320804683,1711561954161,-606.26,0.00059178,120]
[320804684,1711561954170,-2911.12,0.00059178,120]
[320804685,1711561954179,-4771.81,0.00059178,120]
[320804686,1711561954188,-1591.58,0.00059178,120]
[320804687,1711561954198,-8314.67,0.00059178,21]
[320804688,1711561954207,-515.6,0.00059178,120]
[320804689,1711561954216,-1246.89,0.00059178,120]
[320804690,1711561954225,-1689.16,0.00059178,120]
[320804691,1711561954234,-500.0,0.00059178,120]
[320804692,1711561954244,-770.25,0.00059178,120]
[320804693,1711561954253,-8380.88,0.00059178,120]
[320804694,1711561954262,-614.46,0.00059178,120]
[320804695,1711561954272,-2989.36,0.00059178,120]
[320804696,1711561954473,-521.47,0.00059178,120]
[320804697,1711561954483,-10959.62,0.00059178,120]
[320804698,1711561954493,-2645.1,0.00059178,120]
[320804699,1711561954503,-758.38,0.00059178,120]
[320804700,1711561954514,-12744.26,0.00059178,120]
[320804701,1711561954523,-500.0,0.00059178,120]
[320804702,1711561954534,-11517.5,0.00059178,120]
[320804703,1711561954544,-2628.59,0.00059178,120]
[320804704,1711561954553,-1981.45,0.00059178,120]
[320804705,1711561954562,-2618.9,0.00059178,120]
[320804706,1711561954572,-2635.65,0.00059178,120]
[320804707,1711561954581,-2440.72,0.00059178,120]
[320804708,1711561954590,-1641.2,0.00059178,120]
[320804709,1711561954599,-1422.66,0.00059178,120]
[320804710,1711561954610,-1953.26,0.00059178,120]
[320804711,1711561954620,-680.59,0.00059178,120]
[320804712,1711561954629,-851.11,0.00059178,120]
[320804713,1711561954639,-4524.02,0.00059178,120]
[320804714,1711561954651,-516.23,0.00059178,120]
[320804715,1711561954660,-833.36,0.00059178,120]
[320804716,1711561954671,-2147.51,0.00059178,120]
[320804717,1711561954680,-1200.4,0.00059178,120]
[320804718,1711561954690,-4994.03,0.00059178,120]
[320804719,1711561954699,-6977.94,0.00059178,120]
[320804720,1711561954709,-1826.97,0.00059178,120]
[320804721,1711561954720,-1042.58,0.00059178,120]
[320804722,1711561954729,-818.62,0.00059178,120]
[320804723,1711561954739,-1312.03,0.00059178,120]
[320804724,1711561954749,-1814.79,0.00059178,120]
[320804725,1711561954760,-1730.09,0.00059178,120]
[320804726,1711561954770,-3092.64,0.00059178,120]
[320804727,1711561954779,-330.25,0.00059178,120]
[320804728,1711561954789,-3331.35,0.00059178,120]
[320804729,1711561954799,-1107.56,0.00059178,120]
[320804730,1711561954809,-1629.06,0.00059178,120]
[320804731,1711561954819,-858.06,0.00059178,120]
[320804732,1711561954828,-1926.96,0.00059178,120]
[320804733,1711561954838,-5998.21,0.00059178,120]
[320804734,1711561954847,-1276.61,0.00059178,120]
[320804735,1711561954857,-978.47,0.00059178,120]
[320804736,1711561954867,-1204.74,0.00059178,120]
[320804737,1711561954877,-500.0,0.00059178,120]
[320804738,1711561954888,-1112.11,0.00059178,120]
[320804739,1711561954900,-500.0,0.00059178,120]
[320804740,1711561954910,-5147.59,0.00059178,120]
[320804741,1711561954919,-1278.89,0.00059178,120]
[320804742,1711561954931,-150.50617537,0.00059194,120]
[320804743,1711561954941,-157.032721,0.00059198,117]
[320804744,1711561954951,-166.55099269,0.00059204,120]
[320804745,1711561954960,-150.0,0.0005921,120]
[320804746,1711561954970,-200.0,0.00059214,120]
[320804747,1711561954980,-155.61103008,0.00059261,120]
[320804748,1711561954990,-800.0,0.00059268,120]
[320804749,1711561954999,-152.22028876,0.00059272,120]
[320804750,1711561955008,-1002.5,0.00059275,2]
[320804751,1711561955018,-150.0,0.00059361,120]
[320804752,1711561955028,-538.55,0.000594,6]
[320804753,1711561955038,-5515.7832406,0.00059411,2]
[320804754,1711561955049,-15081.0997989,0.00059411,2]
[320804755,1711561955058,-44642.2046749,0.00059411,2]
[320804756,1711561955069,-150.50617537,0.00059416,120]
[320804757,1711561955079,-170.0,0.0005945,85]
[320804758,1711561955089,-1000.0,0.00059451,90]
[320804759,1711561955099,-500.0,0.00059451,90]
[320804760,1711561955109,-522.2,0.00059452,120]
[320804761,1711561955119,-500.0,0.00059452,120]
[320804762,1711561955128,-631.01,0.00059452,120]
[320804763,1711561955138,-500.0,0.00059452,120]
[320804764,1711561955150,-530.38,0.00059452,120]
[320804765,1711561955160,-517.87,0.00059452,120]
[320804766,1711561955170,-736.48,0.00059452,120]
[320804767,1711561955180,-500.0,0.00059452,120]
[320804768,1711561955191,-500.0,0.00059452,120]
[320804769,1711561955201,-827.53,0.00059452,120]
[320804770,1711561955210,-1149.15,0.00059452,120]
[320804771,1711561955220,-683.71,0.00059452,120]
[320804772,1711561955230,-588.63,0.00059452,120]
[320804773,1711561955240,-1653.05,0.00059452,120]
[320804774,1711561955250,-721.85,0.00059452,120]
[320804775,1711561955260,-1272.4,0.00059452,120]
[320804776,1711561955270,-758.1,0.00059452,120]
[320804777,1711561955280,-751.34,0.00059452,120]
[320804778,1711561955290,-1106.66,0.00059452,120]
[320804779,1711561955300,-667.72,0.00059452,120]
[320804780,1711561955311,-500.0,0.00059452,120]
[320804781,1711561955321,-546.53,0.00059452,120]
[320804782,1711561955331,-525.52,0.00059452,120]
[320804783,1711561955341,-1650.28,0.00059452,120]
[320804784,1711561955352,-1208.64,0.00059452,120]
[320804785,1711561955363,-1675.07,0.00059452,120]
[320804786,1711561955374,-500.0,0.00059452,60]
[320804787,1711561955385,-875.05,0.00059452,120]
[320804788,1711561955398,-544.93791029,0.00059452,120]
[320804789,1711561955408,-896.37,0.00059452,120]
[320804790,1711561955419,-526.04,0.00059452,120]
[320804791,1711561955429,-774.53,0.00059452,120]
[320804792,1711561955439,-623.96,0.00059452,120]
[320804793,1711561955450,-1500.57,0.00059452,120]
[320804794,1711561955460,-500.0,0.00059452,120]
[320804795,1711561955470,-1293.46,0.00059452,120]
[320804796,1711561955480,-663.1,0.00059452,120]
[320804797,1711561955490,-591.57,0.00059452,120]
[320804798,1711561955500,-540.2,0.00059452,120]
[320804799,1711561955510,-826.04,0.00059452,120]
[320804800,1711561955521,-802.7,0.00059452,120]
[320804801,1711561955531,-551.8,0.00059452,120]
[320804802,1711561955542,-792.47,0.00059452,120]
[320804803,1711561955553,-507.03,0.00059452,120]
[320804804,1711561955563,-814.62,0.00059452,120]
[320804805,1711561955574,-519.12,0.00059452,120]
[320804806,1711561955584,-553.94,0.00059452,120]